[Event "*** Titled Tuesday Blitz"]
[Site "Chess.com"]
[Date "2021.04.06"]
[Round "3"]
[White "kirillshevchenko"]
[Black "IwkooO"]
[Result "1-0"]
[WhiteElo "2830"]
[BlackElo "2601"]
[TimeControl "180+1"]
[EndTime "10:29:10 PDT"]
[Termination "kirillshevchenko won on time"]

1. e4 {[%clk 0:03:00.9]} 1... c5 {[%clk 0:03:00.3]} 2. c3 {[%clk 0:03:00.7]}
2... d5 {[%clk 0:03:00.1]} 3. exd5 {[%clk 0:03:00.7]} 3... Qxd5 {[%clk 0:03:01]}
4. d4 {[%clk 0:03:01.4]} 4... Nc6 {[%clk 0:03:01.7]} 5. Nf3 {[%clk 0:03:01.6]}
5... Bg4 {[%clk 0:03:02.3]} 6. dxc5 {[%clk 0:03:02.1]} 6... Qxd1+ {[%clk
0:02:25.4]} 7. Kxd1 {[%clk 0:03:01.9]} 7... e5 {[%clk 0:02:25.8]} 8. b4 {[%clk
0:03:00.7]} 8... f6 {[%clk 0:02:21.8]} 9. Be3 {[%clk 0:02:45.6]} 9... Nge7
{[%clk 0:02:18.5]} 10. Kc2 {[%clk 0:02:44.8]} 10... Nf5 {[%clk 0:02:18.1]} 11.
Nbd2 {[%clk 0:02:44.4]} 11... a5 {[%clk 0:02:17.1]} 12. Bb5 {[%clk 0:02:32.6]}
12... O-O-O {[%clk 0:01:43.5]} 13. h3 {[%clk 0:01:53.7]} 13... Nxe3+ {[%clk
0:01:19.7]} 14. fxe3 {[%clk 0:01:51.1]} 14... Bf5+ {[%clk 0:01:20.6]} 15. e4
{[%clk 0:01:49.3]} 15... Bd7 {[%clk 0:01:19.4]} 16. a4 {[%clk 0:01:28.4]} 16...
g6 {[%clk 0:01:12.1]} 17. Bxc6 {[%clk 0:01:24.7]} 17... Bxc6 {[%clk 0:01:11.7]}
18. b5 {[%clk 0:01:23.9]} 18... Be8 {[%clk 0:01:11.1]} 19. Nb3 {[%clk
0:01:23.7]} 19... Bf7 {[%clk 0:01:08.9]} 20. Nfd2 {[%clk 0:01:19.5]} 20... f5
{[%clk 0:01:01.8]} 21. Rad1 {[%clk 0:01:16.8]} 21... Be7 {[%clk 0:00:54.5]} 22.
exf5 {[%clk 0:01:04]} 22... gxf5 {[%clk 0:00:52.6]} 23. Nf3 {[%clk 0:01:03.8]}
23... Bxb3+ {[%clk 0:00:34]} 24. Kxb3 {[%clk 0:01:03.6]} 24... e4 {[%clk
0:00:29.4]} 25. Nd4 {[%clk 0:01:02.8]} 25... Bxc5 {[%clk 0:00:28.1]} 26. Nxf5
{[%clk 0:01:03.1]} 26... Rhg8 {[%clk 0:00:28]} 27. g4 {[%clk 0:01:02.1]} 27...
Kc7 {[%clk 0:00:25.7]} 28. Kc4 {[%clk 0:00:55.5]} 28... Bf2 {[%clk 0:00:24.3]}
29. Ne7 {[%clk 0:00:46]} 29... Rge8 {[%clk 0:00:22.3]} 30. Nd5+ {[%clk
0:00:44.9]} 30... Kb8 {[%clk 0:00:22.9]} 31. Nf4 {[%clk 0:00:34.1]} 31... Rc8+
{[%clk 0:00:16.8]} 32. Kb3 {[%clk 0:00:33.8]} 32... Re7 {[%clk 0:00:11.1]} 33.
Ne2 {[%clk 0:00:31.1]} 33... Rf7 {[%clk 0:00:06.1]} 34. Rhf1 {[%clk 0:00:31.2]}
34... Rf3 {[%clk 0:00:06.5]} 35. Rd7 {[%clk 0:00:29.6]} 35... Ka7 {[%clk
0:00:05.7]} 36. Rxh7 {[%clk 0:00:29.1]} 36... e3 {[%clk 0:00:04.2]} 37. h4
{[%clk 0:00:26.4]} 37... Rh3 {[%clk 0:00:03.4]} 38. h5 {[%clk 0:00:26.7]} 38...
Rd8 {[%clk 0:00:03.8]} 39. Re7 {[%clk 0:00:23.5]} 39... Rd2 {[%clk 0:00:03.8]}
40. Nd4 {[%clk 0:00:24.1]} 40... Rxd4 {[%clk 0:00:04.3]} 41. g5 {[%clk 0:00:18]}
41... Rb4+ {[%clk 0:00:04.2]} 42. Kc2 {[%clk 0:00:17.3]} 42... Rg4 {[%clk
0:00:04.6]} 43. Rb1 {[%clk 0:00:12.5]} 43... Rxg5 {[%clk 0:00:03]} 44. b6+
{[%clk 0:00:12.9]} 44... Ka6 {[%clk 0:00:01.6]} 45. Re8 {[%clk 0:00:13.8]} 1-0

[Event "*** Titled Tuesday Blitz"]
[Site "Chess.com"]
[Date "2021.04.06"]
[Round "3"]
[White "Alex-11211"]
[Black "klimkoj"]
[Result "0-1"]
[WhiteElo "2410"]
[BlackElo "2597"]
[TimeControl "180+1"]
[EndTime "10:29:10 PDT"]
[Termination "klimkoj won on time"]

1. e4 {[%clk 0:03:00.9]} 1... c5 {[%clk 0:03:00]} 2. Nf3 {[%clk 0:03:00.7]} 2...
d6 {[%clk 0:03:00.6]} 3. Bb5+ {[%clk 0:02:59.9]} 3... Nd7 {[%clk 0:02:59.9]} 4.
O-O {[%clk 0:02:59.5]} 4... a6 {[%clk 0:02:59.5]} 5. Bd3 {[%clk 0:02:59.7]} 5...
Ngf6 {[%clk 0:02:58.9]} 6. Re1 {[%clk 0:03:00.3]} 6... e6 {[%clk 0:02:58.6]} 7.
c3 {[%clk 0:02:59.1]} 7... b5 {[%clk 0:02:57.6]} 8. Bc2 {[%clk 0:02:59.6]} 8...
c4 {[%clk 0:02:56]} 9. a4 {[%clk 0:02:58.8]} 9... Bb7 {[%clk 0:02:53.9]} 10.
axb5 {[%clk 0:02:59.1]} 10... axb5 {[%clk 0:02:54.8]} 11. Rxa8 {[%clk
0:02:59.3]} 11... Qxa8 {[%clk 0:02:55.4]} 12. Na3 {[%clk 0:02:59.4]} 12... Be7
{[%clk 0:02:49.2]} 13. Nxb5 {[%clk 0:02:55]} 13... O-O {[%clk 0:02:48]} 14. d3
{[%clk 0:02:22.7]} 14... cxd3 {[%clk 0:02:38.6]} 15. Bxd3 {[%clk 0:02:23.6]}
15... Nc5 {[%clk 0:02:38.1]} 16. Bg5 {[%clk 0:02:04.7]} 16... Ncxe4 {[%clk
0:01:59.1]} 17. Bh4 {[%clk 0:01:45.2]} 17... d5 {[%clk 0:01:47.4]} 18. Nbd4
{[%clk 0:01:23.8]} 18... Ba6 {[%clk 0:01:31]} 19. Bb1 {[%clk 0:01:14.3]} 19...
Rb8 {[%clk 0:01:28.8]} 20. Qc2 {[%clk 0:00:59.9]} 20... Qb7 {[%clk 0:01:26.9]}
21. Ne5 {[%clk 0:00:42.7]} 21... Qxb2 {[%clk 0:01:17.1]} 22. Nec6 {[%clk
0:00:34.1]} 22... Qxc2 {[%clk 0:01:02.7]} 23. Bxc2 {[%clk 0:00:35]} 23... Re8
{[%clk 0:00:50.1]} 24. Bxe4 {[%clk 0:00:20.6]} 24... dxe4 {[%clk 0:00:47.1]} 25.
Nxe7+ {[%clk 0:00:19.2]} 25... Rxe7 {[%clk 0:00:48]} 26. Bxf6 {[%clk 0:00:18.9]}
26... gxf6 {[%clk 0:00:47.1]} 27. Rxe4 {[%clk 0:00:19.8]} 27... Rb7 {[%clk
0:00:43.3]} 28. h3 {[%clk 0:00:16.8]} 28... Rb1+ {[%clk 0:00:43.4]} 29. Kh2
{[%clk 0:00:17.1]} 29... Rb2 {[%clk 0:00:44]} 30. f3 {[%clk 0:00:14.5]} 30...
Bf1 {[%clk 0:00:40.3]} 31. Rg4+ {[%clk 0:00:13.7]} 31... Kf8 {[%clk 0:00:38.9]}
32. c4 {[%clk 0:00:11.7]} 32... f5 {[%clk 0:00:36.3]} 33. Rg3 {[%clk 0:00:10.8]}
33... f4 {[%clk 0:00:31.6]} 34. Rg4 {[%clk 0:00:10.6]} 34... h5 {[%clk 0:00:31]}
35. Rg5 {[%clk 0:00:10.3]} 35... f6 {[%clk 0:00:22.5]} 36. Rxh5 {[%clk 0:00:06]}
36... Bxg2 {[%clk 0:00:22]} 37. Kg1 {[%clk 0:00:03.4]} 37... Kg7 {[%clk
0:00:20.4]} 38. Nxe6+ {[%clk 0:00:03.2]} 38... Kf7 {[%clk 0:00:19.5]} 39. Nxf4
{[%clk 0:00:03.1]} 39... Bxf3 {[%clk 0:00:20]} 40. Rh7+ {[%clk 0:00:03.6]} 40...
Kg8 {[%clk 0:00:20.1]} 41. Rc7 {[%clk 0:00:02.6]} 41... Rc2 {[%clk 0:00:19.6]}
42. c5 {[%clk 0:00:02.6]} 42... Be4 {[%clk 0:00:17.9]} 43. Kf1 {[%clk
0:00:02.5]} 43... f5 {[%clk 0:00:15.6]} 44. h4 {[%clk 0:00:02.5]} 44... Rc3
{[%clk 0:00:15]} 45. Ke2 {[%clk 0:00:01.7]} 45... Rf3 {[%clk 0:00:13.8]} 46. Ne6
{[%clk 0:00:02]} 46... Rh3 {[%clk 0:00:13.5]} 0-1

[Event "*** Titled Tuesday Blitz"]
[Site "Chess.com"]
[Date "2021.04.06"]
[Round "3"]
[White "Yurovskykh_Oleksandr"]
[Black "chessbia"]
[Result "0-1"]
[WhiteElo "2515"]
[BlackElo "2334"]
[TimeControl "180+1"]
[EndTime "10:29:11 PDT"]
[Termination "chessbia won by checkmate"]

1. d4 {[%clk 0:03:00.9]} 1... d5 {[%clk 0:02:59.2]} 2. Bf4 {[%clk 0:02:55.7]}
2... c5 {[%clk 0:02:57.5]} 3. e3 {[%clk 0:02:55.8]} 3... Nc6 {[%clk 0:02:57.4]}
4. c3 {[%clk 0:02:56.1]} 4... Nf6 {[%clk 0:02:53.1]} 5. Nd2 {[%clk 0:02:55.4]}
5... Qb6 {[%clk 0:02:50]} 6. Qb3 {[%clk 0:02:55.3]} 6... c4 {[%clk 0:02:50.3]}
7. Qc2 {[%clk 0:02:55]} 7... Nh5 {[%clk 0:02:45.7]} 8. Bg5 {[%clk 0:02:54.8]}
8... h6 {[%clk 0:02:43.3]} 9. Bh4 {[%clk 0:02:54.9]} 9... g5 {[%clk 0:02:40.5]}
10. Be2 {[%clk 0:02:55]} 10... Ng7 {[%clk 0:02:29.9]} 11. Bg3 {[%clk 0:02:53.9]}
11... Bf5 {[%clk 0:02:29.8]} 12. e4 {[%clk 0:02:36]} 12... Bg6 {[%clk
0:02:28.7]} 13. h4 {[%clk 0:02:33.5]} 13... gxh4 {[%clk 0:02:17.6]} 14. Rxh4
{[%clk 0:02:05.9]} 14... e6 {[%clk 0:01:58.5]} 15. Ngf3 {[%clk 0:01:58.7]} 15...
Be7 {[%clk 0:01:52.7]} 16. Rg4 {[%clk 0:01:58.9]} 16... O-O-O {[%clk 0:01:45.8]}
17. O-O-O {[%clk 0:01:49.3]} 17... Nh5 {[%clk 0:01:40.1]} 18. Bh4 {[%clk
0:01:39.9]} 18... Nf6 {[%clk 0:01:32.3]} 19. Bxf6 {[%clk 0:01:07.1]} 19... Bxf6
{[%clk 0:01:33.2]} 20. Rxg6 {[%clk 0:01:07.3]} 20... fxg6 {[%clk 0:01:32.8]} 21.
e5 {[%clk 0:01:07.9]} 21... Bg5 {[%clk 0:01:19.4]} 22. Nxg5 {[%clk 0:00:58.8]}
22... hxg5 {[%clk 0:01:20.3]} 23. Qxg6 {[%clk 0:00:59.4]} 23... Ne7 {[%clk
0:01:13.9]} 24. Qxg5 {[%clk 0:00:55]} 24... Kd7 {[%clk 0:01:10.5]} 25. g3 {[%clk
0:00:44.4]} 25... Rdg8 {[%clk 0:01:08.1]} 26. Qf4 {[%clk 0:00:39]} 26... Rf8
{[%clk 0:01:05.4]} 27. Qe3 {[%clk 0:00:23.2]} 27... Nf5 {[%clk 0:01:03]} 28. Qg5
{[%clk 0:00:23.4]} 28... Rhg8 {[%clk 0:01:00.3]} 29. Qh5 {[%clk 0:00:20.2]}
29... Qa5 {[%clk 0:00:50]} 30. a3 {[%clk 0:00:20]} 30... Qd8 {[%clk 0:00:46.2]}
31. Rh1 {[%clk 0:00:19]} 31... Rh8 {[%clk 0:00:43.1]} 32. Qf3 {[%clk 0:00:19.1]}
32... Nxd4 {[%clk 0:00:33.2]} 33. Rxh8 {[%clk 0:00:18.4]} 33... Nxf3 {[%clk
0:00:31.6]} 34. Rxf8 {[%clk 0:00:17.4]} 34... Qxf8 {[%clk 0:00:30.8]} 35. Nxf3
{[%clk 0:00:18.3]} 35... Qh8 {[%clk 0:00:27]} 36. Kd2 {[%clk 0:00:18.3]} 36...
b5 {[%clk 0:00:25.2]} 37. Bd1 {[%clk 0:00:17.8]} 37... a5 {[%clk 0:00:24.6]} 38.
Bc2 {[%clk 0:00:18.1]} 38... Qh6+ {[%clk 0:00:23.4]} 39. Kd1 {[%clk 0:00:18.3]}
39... Qh1+ {[%clk 0:00:20.4]} 40. Ke2 {[%clk 0:00:18.7]} 40... Qc1 {[%clk
0:00:20.2]} 41. Nd4 {[%clk 0:00:19.1]} 41... Qxb2 {[%clk 0:00:19.4]} 42. g4
{[%clk 0:00:19.6]} 42... Qxc3 {[%clk 0:00:19.3]} 43. Nxb5 {[%clk 0:00:02.3]}
43... Qxc2+ {[%clk 0:00:19.2]} 44. Ke3 {[%clk 0:00:02.9]} 44... Qb3+ {[%clk
0:00:19]} 45. Kf4 {[%clk 0:00:03.4]} 45... Qxb5 {[%clk 0:00:19.3]} 46. Kg5
{[%clk 0:00:04]} 46... Qb3 {[%clk 0:00:18.7]} 47. Kf6 {[%clk 0:00:04.4]} 47...
Qxa3 {[%clk 0:00:18.5]} 48. f4 {[%clk 0:00:04.1]} 48... c3 {[%clk 0:00:16.5]}
49. g5 {[%clk 0:00:04.2]} 49... c2 {[%clk 0:00:16.4]} 50. g6 {[%clk 0:00:04.5]}
50... Qe7# {[%clk 0:00:16.1]} 0-1

[Event "*** Titled Tuesday Blitz"]
[Site "Chess.com"]
[Date "2021.04.06"]
[Round "3"]
[White "anasta10"]
[Black "annamaja"]
[Result "1-0"]
[WhiteElo "2520"]
[BlackElo "2270"]
[TimeControl "180+1"]
[EndTime "10:29:12 PDT"]
[Termination "anasta10 won on time"]

1. d4 {[%clk 0:03:00.9]} 1... d5 {[%clk 0:02:59.5]} 2. c4 {[%clk 0:03:01]} 2...
e6 {[%clk 0:02:57.9]} 3. Nc3 {[%clk 0:03:00.2]} 3... Nf6 {[%clk 0:02:58]} 4.
cxd5 {[%clk 0:02:59.9]} 4... exd5 {[%clk 0:02:58.4]} 5. Bg5 {[%clk 0:03:00.5]}
5... Be7 {[%clk 0:02:55.1]} 6. e3 {[%clk 0:03:00.7]} 6... O-O {[%clk 0:02:54.7]}
7. Bd3 {[%clk 0:03:00.6]} 7... c6 {[%clk 0:02:54.1]} 8. Nf3 {[%clk 0:03:00.3]}
8... Bg4 {[%clk 0:02:52.2]} 9. h3 {[%clk 0:03:00.1]} 9... Bh5 {[%clk 0:02:52.2]}
10. Qc2 {[%clk 0:03:00.2]} 10... Bg6 {[%clk 0:02:42]} 11. Ne5 {[%clk 0:02:53.8]}
11... Bxd3 {[%clk 0:02:38.3]} 12. Nxd3 {[%clk 0:02:54.7]} 12... Nbd7 {[%clk
0:02:30.8]} 13. O-O-O {[%clk 0:02:52.4]} 13... Ne4 {[%clk 0:02:24.5]} 14. Bxe7
{[%clk 0:02:52.2]} 14... Qxe7 {[%clk 0:02:24.8]} 15. Rde1 {[%clk 0:02:39.5]}
15... b5 {[%clk 0:02:12.9]} 16. Nxe4 {[%clk 0:02:27.8]} 16... Qxe4 {[%clk
0:02:09]} 17. f3 {[%clk 0:02:22.9]} 17... Qg6 {[%clk 0:02:05.1]} 18. Kb1 {[%clk
0:02:09.9]} 18... Rfe8 {[%clk 0:01:59.6]} 19. g4 {[%clk 0:01:59.8]} 19... Rac8
{[%clk 0:01:48.4]} 20. h4 {[%clk 0:01:39.4]} 20... c5 {[%clk 0:01:43.6]} 21. h5
{[%clk 0:01:39.3]} 21... Qd6 {[%clk 0:01:40.4]} 22. dxc5 {[%clk 0:01:34.5]}
22... Nxc5 {[%clk 0:01:39.2]} 23. Nxc5 {[%clk 0:01:34.5]} 23... Rxc5 {[%clk
0:01:40.1]} 24. Qd2 {[%clk 0:01:30.9]} 24... Rec8 {[%clk 0:01:33]} 25. Rc1
{[%clk 0:01:30]} 25... h6 {[%clk 0:01:16.5]} 26. a3 {[%clk 0:01:27.4]} 26... Rc4
{[%clk 0:01:01.7]} 27. Rhd1 {[%clk 0:01:17.7]} 27... R8c5 {[%clk 0:00:51.9]} 28.
Rxc4 {[%clk 0:01:03.6]} 28... bxc4 {[%clk 0:00:49.7]} 29. Qc3 {[%clk 0:00:55.2]}
29... Qb6 {[%clk 0:00:29.2]} 30. e4 {[%clk 0:00:38.3]} 30... dxe4 {[%clk
0:00:22.9]} 31. fxe4 {[%clk 0:00:39.2]} 31... Rb5 {[%clk 0:00:20.5]} 32. Rd2
{[%clk 0:00:37.4]} 32... Qg1+ {[%clk 0:00:14.6]} 33. Ka2 {[%clk 0:00:36.8]}
33... Qxg4 {[%clk 0:00:13.2]} 34. Qxc4 {[%clk 0:00:35.2]} 34... Qxh5 {[%clk
0:00:11.3]} 35. Rd8+ {[%clk 0:00:22.2]} 35... Kh7 {[%clk 0:00:11.7]} 36. Rd7
{[%clk 0:00:22.7]} 36... Rc5 {[%clk 0:00:09.7]} 37. Qb3 {[%clk 0:00:18.5]} 37...
Rc1 {[%clk 0:00:03.7]} 38. Rxa7 {[%clk 0:00:15.3]} 38... Qh1 {[%clk 0:00:02.4]}
39. Qxf7 {[%clk 0:00:10.5]} 39... Ra1+ {[%clk 0:00:01.7]} 40. Kb3 {[%clk
0:00:10.5]} 40... Qd1+ {[%clk 0:00:02.4]} 41. Kb4 {[%clk 0:00:10.2]} 41... Qd4+
{[%clk 0:00:01.9]} 42. Ka5 {[%clk 0:00:07.4]} 42... Qe5+ {[%clk 0:00:01]} 43.
Ka6 {[%clk 0:00:04.4]} 43... Qd6+ {[%clk 0:00:01.3]} 44. Kb7 {[%clk 0:00:04.6]}
1-0

[Event "*** Titled Tuesday Blitz"]
[Site "Chess.com"]
[Date "2021.04.06"]
[Round "3"]
[White "ChampStan"]
[Black "Kostukov_Alex"]
[Result "1-0"]
[WhiteElo "2028"]
[BlackElo "2281"]
[TimeControl "180+1"]
[EndTime "10:29:12 PDT"]
[Termination "ChampStan won on time"]

1. d4 {[%clk 0:03:00.9]} 1... g6 {[%clk 0:02:59.2]} 2. c4 {[%clk 0:02:59.1]}
2... Bg7 {[%clk 0:02:59.7]} 3. Nf3 {[%clk 0:02:52.7]} 3... d6 {[%clk 0:02:59.5]}
4. g3 {[%clk 0:02:51.4]} 4... e5 {[%clk 0:02:57.4]} 5. Bg2 {[%clk 0:02:48.1]}
5... exd4 {[%clk 0:02:55.3]} 6. Nxd4 {[%clk 0:02:44.8]} 6... Ne7 {[%clk
0:02:56.2]} 7. O-O {[%clk 0:02:44.1]} 7... O-O {[%clk 0:02:56.2]} 8. Nc3 {[%clk
0:02:38.5]} 8... Nbc6 {[%clk 0:02:56.2]} 9. Nxc6 {[%clk 0:02:22.7]} 9... bxc6
{[%clk 0:02:57.1]} 10. Qd2 {[%clk 0:02:19.7]} 10... Rb8 {[%clk 0:02:55.3]} 11.
b3 {[%clk 0:02:19.4]} 11... d5 {[%clk 0:02:46.9]} 12. Ba3 {[%clk 0:02:06.9]}
12... d4 {[%clk 0:02:35.3]} 13. Ne4 {[%clk 0:01:54.4]} 13... Re8 {[%clk
0:02:34.5]} 14. Rad1 {[%clk 0:01:45.3]} 14... Nf5 {[%clk 0:02:34.3]} 15. Qc2
{[%clk 0:01:29.7]} 15... h5 {[%clk 0:02:21.6]} 16. h4 {[%clk 0:01:22]} 16... Be6
{[%clk 0:02:15]} 17. Ng5 {[%clk 0:01:16.9]} 17... Nd6 {[%clk 0:02:04.9]} 18.
Bxc6 {[%clk 0:01:06.4]} 18... Bf5 {[%clk 0:02:04.1]} 19. Qd2 {[%clk 0:00:59.5]}
19... Re7 {[%clk 0:01:57.3]} 20. Bg2 {[%clk 0:00:59.1]} 20... Rd7 {[%clk
0:01:42.1]} 21. Bc5 {[%clk 0:00:48.3]} 21... f6 {[%clk 0:01:20.2]} 22. Bd5+
{[%clk 0:00:34.3]} 22... Kf8 {[%clk 0:01:19]} 23. Nh7+ {[%clk 0:00:23.6]} 23...
Ke8 {[%clk 0:01:17.7]} 24. Qxd4 {[%clk 0:00:22.8]} 24... Ne4 {[%clk 0:01:13.1]}
25. Qe3 {[%clk 0:00:20.6]} 25... Rb6 {[%clk 0:00:25.5]} 26. Bxe4 {[%clk
0:00:18.1]} 26... Re6 {[%clk 0:00:25.3]} 27. Rxd7 {[%clk 0:00:12.8]} 27... Qxd7
{[%clk 0:00:24]} 28. f3 {[%clk 0:00:11.1]} 28... Bxe4 {[%clk 0:00:22.5]} 29.
fxe4 {[%clk 0:00:11.2]} 29... Qc6 {[%clk 0:00:21.9]} 30. Rf4 {[%clk 0:00:04.6]}
30... Bh6 {[%clk 0:00:19.3]} 31. Qd4 {[%clk 0:00:03.7]} 31... Bxf4 {[%clk
0:00:16.5]} 32. gxf4 {[%clk 0:00:04.6]} 32... Kf7 {[%clk 0:00:13.7]} 33. f5
{[%clk 0:00:04.3]} 33... Rxe4 {[%clk 0:00:09.8]} 34. Qf2 {[%clk 0:00:02.9]}
34... Rg4+ {[%clk 0:00:08.3]} 35. Kh2 {[%clk 0:00:03.3]} 35... Kg7 {[%clk
0:00:07.7]} 36. fxg6 {[%clk 0:00:03.3]} 36... Qe4 {[%clk 0:00:04.9]} 37. Bf8+
{[%clk 0:00:01.5]} 37... Kxg6 {[%clk 0:00:03.7]} 38. Qxf6+ {[%clk 0:00:01.2]}
38... Kxh7 {[%clk 0:00:03.7]} 39. Qf7+ {[%clk 0:00:01.8]} 1-0

[Event "*** Titled Tuesday Blitz"]
[Site "Chess.com"]
[Date "2021.04.06"]
[Round "3"]
[White "prachiti01"]
[Black "NoGuru"]
[Result "1-0"]
[WhiteElo "2147"]
[BlackElo "2323"]
[TimeControl "180+1"]
[EndTime "10:29:13 PDT"]
[Termination "prachiti01 won on time"]

1. e4 {[%clk 0:03:00.9]} 1... e5 {[%clk 0:03:00]} 2. Nf3 {[%clk 0:02:59.7]} 2...
Nc6 {[%clk 0:03:00]} 3. Bb5 {[%clk 0:02:58.7]} 3... a6 {[%clk 0:02:59]} 4. Ba4
{[%clk 0:02:58.5]} 4... Nf6 {[%clk 0:02:59.2]} 5. d3 {[%clk 0:02:58.1]} 5... b5
{[%clk 0:02:57.3]} 6. Bb3 {[%clk 0:02:57.3]} 6... Bc5 {[%clk 0:02:57.4]} 7. O-O
{[%clk 0:02:56.8]} 7... d6 {[%clk 0:02:57.5]} 8. Nc3 {[%clk 0:02:55.4]} 8... h6
{[%clk 0:02:56.9]} 9. Nd5 {[%clk 0:02:55.1]} 9... Be6 {[%clk 0:02:50.5]} 10. c3
{[%clk 0:02:52.4]} 10... O-O {[%clk 0:02:49.3]} 11. d4 {[%clk 0:02:50.5]} 11...
exd4 {[%clk 0:02:32.8]} 12. cxd4 {[%clk 0:02:50.2]} 12... Nxe4 {[%clk
0:02:12.4]} 13. dxc5 {[%clk 0:02:49.5]} 13... Nxc5 {[%clk 0:02:12.6]} 14. Bc2
{[%clk 0:02:39.9]} 14... Ne7 {[%clk 0:02:02.6]} 15. Nxe7+ {[%clk 0:02:38.9]}
15... Qxe7 {[%clk 0:02:03.5]} 16. Be3 {[%clk 0:02:37.5]} 16... Nd7 {[%clk
0:01:51.3]} 17. Qd3 {[%clk 0:02:34.8]} 17... f5 {[%clk 0:01:44.7]} 18. Nd4
{[%clk 0:02:30]} 18... Ne5 {[%clk 0:01:30.3]} 19. Qe2 {[%clk 0:02:11.5]} 19...
Bc4 {[%clk 0:01:22.5]} 20. Bb3 {[%clk 0:02:09.2]} 20... f4 {[%clk 0:01:21.9]}
21. Bd2 {[%clk 0:02:01.3]} 21... f3 {[%clk 0:01:07]} 22. Bxc4+ {[%clk
0:01:59.4]} 22... bxc4 {[%clk 0:01:06.6]} 23. Qe3 {[%clk 0:01:50.8]} 23... fxg2
{[%clk 0:00:36.2]} 24. Kxg2 {[%clk 0:01:50.9]} 24... Qh4 {[%clk 0:00:34.7]} 25.
f4 {[%clk 0:01:40.8]} 25... Nd3 {[%clk 0:00:27.2]} 26. Qg3 {[%clk 0:01:37]}
26... Qh5 {[%clk 0:00:23.4]} 27. Bc3 {[%clk 0:01:23]} 27... Rf7 {[%clk
0:00:20.3]} 28. Nf3 {[%clk 0:01:06.1]} 28... Raf8 {[%clk 0:00:17.5]} 29. Kh1
{[%clk 0:00:54.6]} 29... Nxf4 {[%clk 0:00:16.6]} 30. Ng1 {[%clk 0:00:34.8]}
30... Qd5+ {[%clk 0:00:08]} 31. Qf3 {[%clk 0:00:34.3]} 31... Qg5 {[%clk
0:00:06.6]} 32. Qg3 {[%clk 0:00:30.7]} 32... Qd5+ {[%clk 0:00:06.1]} 33. Nf3
{[%clk 0:00:29.9]} 33... Ne2 {[%clk 0:00:04.9]} 34. Qg2 {[%clk 0:00:25.6]} 34...
g5 {[%clk 0:00:03.4]} 35. Qxe2 {[%clk 0:00:22.6]} 35... Rxf3 {[%clk 0:00:03.3]}
36. Rxf3 {[%clk 0:00:21.5]} 36... Rxf3 {[%clk 0:00:03.4]} 37. Qg2 {[%clk
0:00:21.2]} 37... Qf5 {[%clk 0:00:02.4]} 38. Re1 {[%clk 0:00:17.1]} 38... d5
{[%clk 0:00:01.8]} 39. Be5 {[%clk 0:00:10.7]} 39... c5 {[%clk 0:00:01.5]} 40.
Bg3 {[%clk 0:00:10.2]} 40... d4 {[%clk 0:00:01.3]} 41. Qe2 {[%clk 0:00:08.8]}
1-0

[Event "*** Titled Tuesday Blitz"]
[Site "Chess.com"]
[Date "2021.04.06"]
[Round "3"]
[White "DrMamaliga"]
[Black "AlexSuv"]
[Result "0-1"]
[WhiteElo "2385"]
[BlackElo "2574"]
[TimeControl "180+1"]
[EndTime "10:29:14 PDT"]
[Termination "AlexSuv won on time"]

1. c4 {[%clk 0:03:00.9]} 1... e5 {[%clk 0:02:56.3]} 2. Nf3 {[%clk 0:03:01.8]}
2... Nc6 {[%clk 0:02:56]} 3. Nc3 {[%clk 0:03:01.7]} 3... Bc5 {[%clk 0:02:54.9]}
4. e3 {[%clk 0:03:02.1]} 4... d6 {[%clk 0:02:52.4]} 5. d4 {[%clk 0:03:01.8]}
5... exd4 {[%clk 0:02:53.3]} 6. exd4 {[%clk 0:03:02.7]} 6... Bb4 {[%clk
0:02:53.9]} 7. Bd3 {[%clk 0:03:03.3]} 7... Bg4 {[%clk 0:02:50.1]} 8. O-O {[%clk
0:03:03]} 8... Nge7 {[%clk 0:02:46.1]} 9. a3 {[%clk 0:02:56.3]} 9... Bxc3 {[%clk
0:02:44.8]} 10. bxc3 {[%clk 0:02:57.2]} 10... O-O {[%clk 0:02:44.7]} 11. h3
{[%clk 0:02:56.9]} 11... Bf5 {[%clk 0:02:38.4]} 12. Bg5 {[%clk 0:02:54.9]} 12...
Bxd3 {[%clk 0:02:23.9]} 13. Qxd3 {[%clk 0:02:55.8]} 13... h6 {[%clk 0:02:23.5]}
14. Bxe7 {[%clk 0:02:54.5]} 14... Qxe7 {[%clk 0:02:21.3]} 15. d5 {[%clk
0:02:49.1]} 15... Na5 {[%clk 0:01:56.6]} 16. Nd4 {[%clk 0:02:44.7]} 16... Qf6
{[%clk 0:01:56.3]} 17. Rfe1 {[%clk 0:02:36.9]} 17... Rfe8 {[%clk 0:01:48.3]} 18.
Kf1 {[%clk 0:02:31.8]} 18... a6 {[%clk 0:01:42]} 19. Re2 {[%clk 0:02:10.6]}
19... b6 {[%clk 0:01:18.5]} 20. Rae1 {[%clk 0:02:08]} 20... Rxe2 {[%clk
0:01:18.5]} 21. Qxe2 {[%clk 0:02:08.9]} 21... Qg6 {[%clk 0:01:02.4]} 22. g4
{[%clk 0:01:54.8]} 22... Kh7 {[%clk 0:00:28.5]} 23. a4 {[%clk 0:01:51.9]} 23...
Nb7 {[%clk 0:00:24.8]} 24. Nf5 {[%clk 0:01:38.5]} 24... Nc5 {[%clk 0:00:20.5]}
25. Qe7 {[%clk 0:01:37.5]} 25... Rc8 {[%clk 0:00:17.8]} 26. a5 {[%clk
0:01:30.3]} 26... bxa5 {[%clk 0:00:17.7]} 27. Ra1 {[%clk 0:01:28.6]} 27... a4
{[%clk 0:00:17.9]} 28. f3 {[%clk 0:01:22.2]} 28... Qf6 {[%clk 0:00:17.1]} 29.
Qxf6 {[%clk 0:00:56.5]} 29... gxf6 {[%clk 0:00:18]} 30. Rb1 {[%clk 0:00:57]}
30... Nb3 {[%clk 0:00:09.7]} 31. Ne7 {[%clk 0:00:51.8]} 31... Re8 {[%clk
0:00:08.7]} 32. Re1 {[%clk 0:00:45.5]} 32... a3 {[%clk 0:00:07.5]} 33. Re2
{[%clk 0:00:45.3]} 33... Rxe7 {[%clk 0:00:05.4]} 34. Ra2 {[%clk 0:00:42.2]}
34... Nc5 {[%clk 0:00:03.3]} 35. Rxa3 {[%clk 0:00:42.5]} 35... Re3 {[%clk
0:00:03.9]} 36. Kf2 {[%clk 0:00:42.8]} 36... Rd3 {[%clk 0:00:04.5]} 37. h4
{[%clk 0:00:40.7]} 37... Rd2+ {[%clk 0:00:03.9]} 38. Ke3 {[%clk 0:00:40.6]}
38... Rd1 {[%clk 0:00:04.4]} 39. h5 {[%clk 0:00:40.7]} 39... Rb1 {[%clk
0:00:03.9]} 40. Kf4 {[%clk 0:00:37.6]} 40... Rb3 {[%clk 0:00:03.9]} 41. Ra1
{[%clk 0:00:36.8]} 41... Rxc3 {[%clk 0:00:04.1]} 42. Re1 {[%clk 0:00:37.2]}
42... Nd3+ {[%clk 0:00:03]} 0-1